bitfinex-derivatives/quotes_BNBF0:USTF0_20250309
["timestamp","ask_amount","ask_price","bid_price","bid_amount"]
[1741545744799,0.31534593,552.05,551.36,0.30356998]
[1741545745198,0.31534593,552.05,551.37,0.36273282]
[1741545745398,0.31534593,552.05,551.38,0.30356998]
[1741545746598,1.315,552.08,551.39,0.36271967]
[1741545746895,0.31534021,552.04,551.4,0.30356998]
[1741545747101,0.31534021,552.04,551.41,0.36270651]
[1741545747303,0.31534021,552.04,551.42,0.30356998]
[1741545748207,0.31534021,552.04,551.43,0.36269336]
[1741545748401,0.31534021,552.04,551.44,0.30356998]
[1741545748602,0.31534021,552.04,551.45,0.3626802]
[1741545748998,0.31534021,552.04,551.46,0.30356998]
[1741545749200,0.31534021,552.04,551.47,0.36266705]
[1741545749501,0.31534021,552.04,551.48,0.30356998]
[1741545749799,0.31534021,552.04,551.49,0.3626539]
[1741545749994,0.31534021,552.04,551.5,0.30356998]
[1741545750201,0.31534021,552.04,551.51,0.36264074]
[1741545750405,1.315,552.08,551.52,0.30356998]
[1741545751501,1.315,552.08,551.53,0.30356998]
[1741545751701,1.315,552.08,551.54,0.30356998]
[1741545751893,1.315,552.08,551.51,0.36264074]
[1741545752095,1.315,552.08,551.52,0.3028575]
[1741545752295,1.315,552.08,551.53,0.3028575]
[1741545752496,1.315,552.08,551.54,0.3028575]
[1741545752699,1.315,552.08,551.51,0.36264074]
[1741545752700,1.315,552.08,551.55,0.3028575]
[1741545753007,1.315,552.08,551.56,0.3028575]
[1741545753197,1.315,552.08,551.57,0.3028575]
[1741545753401,1.315,552.08,551.52,0.3028575]
[1741545753597,1.315,552.08,551.58,0.3028575]
[1741545753901,1.315,552.08,551.59,0.30314285]
[1741545754102,1.315,552.08,551.52,0.30314285]
[1741545754297,1.315,552.08,551.6,0.30314285]
[1741545754497,1.315,552.08,551.61,0.30314285]
[1741545754797,1.315,552.08,551.62,0.30314285]
[1741545754998,1.315,552.08,551.52,0.30314285]
[1741545755204,1.315,552.08,551.53,0.30314285]
[1741545755501,1.315,552.08,551.54,0.30314285]
[1741545755698,1.315,552.08,551.55,0.6657573]
[1741545756003,1.315,552.08,551.56,0.66575072]
[1741545756204,1.315,552.08,551.57,0.30314285]
[1741545756503,1.315,552.08,551.56,0.36260787]
[1741545756504,1.315,552.08,551.58,0.66573757]
[1741545756704,1.315,552.08,551.59,0.665731]
[1741545756905,1.315,552.08,551.6,0.30314285]
[1741545757505,1.315,552.08,551.61,0.66567503]
[1741545757707,1.315,552.08,551.62,0.30310003]
[1741545757904,1.315,552.08,551.63,0.30310003]
[1741545758200,1.315,552.08,551.64,0.30310003]
[1741545758400,1.315,552.08,551.62,0.30310003]
[1741545758708,1.315,552.08,551.63,0.30310003]
[1741545758905,1.315,552.08,551.64,0.30310003]
[1741545759306,1.315,552.08,551.65,0.3025154]
[1741545759507,1.315,552.08,551.66,0.3025154]
[1741545760007,1.315,552.08,551.67,0.3025154]
[1741545760208,1.315,552.08,551.68,0.3025154]
[1741545760506,1.315,552.08,551.69,0.3025154]
[1741545760706,1.315,552.08,551.7,0.3025154]
[1741545760900,1.315,552.08,551.71,0.3025154]
[1741545761099,2.89437906,553.0,551.72,0.3025154]
[1741545761301,2.91735104,552.99,551.72,0.3025154]
[1741545761500,0.3151075,552.68,551.73,0.3025154]
[1741545761707,1.12205809,552.97,551.74,0.3025154]
[1741545762003,4.8512914,552.96,551.75,0.3025154]
[1741545762208,5.26690216,552.95,551.76,0.3025154]
[1741545762404,5.26690216,552.95,551.61,0.362575]
[1741545762405,11.89078562,552.94,551.77,0.3025154]
[1741545762605,8.16155231,552.93,551.78,0.3025154]
[1741545762801,8.16170963,552.92,551.79,0.3025154]
[1741545763012,1.76834349,552.81,551.62,0.3025154]
[1741545763205,1.76834349,552.81,551.63,0.3025154]
[1741545763402,1.76834349,552.81,551.64,0.3025154]
[1741545763607,3.72923331,552.8,551.65,0.3025154]
[1741545763809,3.72923331,552.8,551.66,0.3025154]
[1741545764109,3.72923331,552.79,551.67,0.3025154]
[1741545764310,3.72923331,552.79,551.68,0.3025154]
[1741545764311,4.76723331,552.79,551.68,0.3025154]
[1741545764607,4.76723331,552.79,551.69,0.3025154]
[1741545764811,0.3150533,552.78,551.61,0.362575]
[1741545765008,0.3150533,552.78,551.7,0.30297242]
[1741545765205,0.3150533,552.78,551.71,0.30297242]
[1741545765509,1.7493738,552.78,551.73,0.36249614]
[1741545765706,1.7493738,552.78,551.74,0.30297242]
[1741545765911,1.7493738,552.78,551.76,0.36247643]
[1741545766212,1.7493738,552.78,551.77,0.30297242]
[1741545766808,0.3150533,552.78,551.77,0.30297242]
[1741545767711,1.4343205,552.77,551.77,0.30297242]
[1741545768012,1.74939947,552.77,551.77,0.30297242]
[1741545768220,4.84803935,552.76,551.77,0.30297242]
[1741545768412,1.11880604,552.75,551.77,0.30297242]
[1741545768814,1.11880604,552.74,551.77,0.30297242]
[1741545769012,4.84803935,552.74,551.77,0.30297242]
[1741545769214,4.71950732,552.73,551.77,0.30297242]
[1741545769518,2.90940753,552.72,551.77,0.30297242]
[1741545769712,1.11880604,552.71,551.77,0.30297242]
[1741545769918,4.84803935,552.71,551.77,0.30297242]
[1741545770217,1.11880604,552.7,551.78,0.3624633]
[1741545770412,1.81010296,552.69,551.78,0.6655618]
[1741545770612,2.928909,552.68,551.79,0.3030985]
[1741545770817,5.82657614,552.67,551.79,0.3030985]
[1741545771014,8.16214207,552.66,551.79,0.3030985]
[1741545771225,8.16214207,552.65,551.8,0.36245016]
[1741545771413,4.72289853,552.64,551.81,0.3030985]
[1741545771617,4.72289853,552.63,551.81,0.3030985]
[1741545771821,2.91279557,552.62,551.83,0.36243045]
[1741545772118,4.72268476,552.61,551.84,0.3030985]
[1741545772313,8.45191807,552.6,551.84,0.3030985]
[1741545772514,4.72268476,552.59,551.85,0.36241732]
[1741545772712,4.72283348,552.58,551.86,0.3030985]
[1741545773018,2.91279557,552.57,551.87,0.36240418]
[1741545773213,4.72289533,552.56,551.88,0.3030985]
[1741545773415,4.72585739,552.55,551.89,0.36239105]
[1741545773615,4.7259106,552.54,551.9,0.3030985]
[1741545773818,4.72592761,552.53,551.91,0.36237792]
[1741545774120,4.84954176,552.52,551.92,0.302957]
[1741545774320,4.84954176,552.52,551.93,0.36236479]
[1741545774321,1.12030845,552.51,551.93,0.36236479]
[1741545774515,3.72923331,552.52,551.93,0.36236479]
[1741545774726,3.72923331,552.52,551.94,0.302957]
[1741545774926,3.72923331,552.51,551.94,0.302957]
[1741545775127,3.72923331,552.51,551.95,0.36235166]
[1741545775323,3.72923331,552.51,551.96,0.302957]
[1741545775524,1.4343205,552.5,551.97,0.36233853]
[1741545775917,1.4343205,552.5,551.98,0.3028431]
[1741545776121,1.4343205,552.49,551.98,0.3028431]
[1741545776823,1.12294771,552.48,551.98,0.3028431]
[1741545777021,1.12296601,552.47,551.98,0.3028431]
[1741545777320,1.12318462,552.46,551.98,0.3028431]
[1741545777519,1.12329294,552.45,551.97,0.36233853]
[1741545777718,3.73128116,552.46,551.97,0.36233853]
[1741545777920,4.85461089,552.45,551.97,0.36233853]
[1741545778121,3.73128116,552.45,551.98,0.30290584]
[1741545778525,3.73128116,552.44,551.98,0.30290584]
[1741545779125,1.4343205,552.43,551.98,0.30290584]
[1741545779524,3.73351221,552.42,551.98,0.30290584]
[1741545779721,4.04867393,552.42,551.98,0.30290584]
[1741545780127,2.55834837,552.41,551.98,0.30290584]
[1741545780428,1.12402787,552.4,551.97,0.36233853]
[1741545780625,1.12402787,552.39,551.97,0.36233853]
[1741545780825,1.12402787,552.38,551.97,0.36233853]
[1741545781020,2.92268895,552.37,551.97,0.36233853]
[1741545781219,1.12402787,552.36,551.97,0.36233853]
[1741545781426,3.73356435,552.39,551.97,0.36233853]
[1741545781629,3.73356435,552.36,551.97,0.36233853]
[1741545782128,1.4343205,552.35,551.97,0.36233853]
[1741545782326,1.4343205,552.35,551.98,0.30307862]
[1741545782724,2.29960965,552.57,551.98,0.30307862]
[1741545783120,2.29960965,552.71,551.98,0.30307862]
[1741545783329,4.73258263,552.7,551.98,0.30307862]
[1741545783528,1.12416903,552.69,551.98,0.30307862]
[1741545783735,2.92300346,552.68,551.98,0.30307862]
[1741545783937,3.73693457,552.68,551.98,0.30307862]
[1741545784126,1.1241811,552.67,551.98,0.30307862]
[1741545784328,3.73693457,552.68,551.98,0.30307862]
[1741545784534,4.86102413,552.67,551.98,0.30307862]
[1741545784830,1.12408956,552.66,551.98,0.30307862]
[1741545785027,1.12408956,552.65,551.98,0.30307862]
[1741545785330,3.73693457,552.66,551.99,0.66495877]
[1741545785526,1.43732492,552.64,552.0,0.66495221]
[1741545785728,1.43732492,552.64,552.01,0.36231227]
[1741545786026,1.43732492,552.63,552.02,0.30263337]
[1741545786531,0.31503191,552.65,552.02,0.30263337]
[1741545786735,1.038,552.79,552.02,0.30263337]
[1741545787831,1.038,552.79,552.03,0.30263337]
[1741545788131,1.038,552.79,552.04,0.30263337]
[1741545788332,3.73058519,553.08,552.04,0.30263337]
[1741545788532,0.3149535,552.98,552.05,0.30263337]
[1741545788831,3.73058519,553.08,552.06,0.30263337]
[1741545789031,1.32373427,553.68,552.07,0.30263337]
[1741545789032,1.76834349,553.38,552.07,0.30263337]
[1741545789238,4.7216277,553.37,552.08,0.30263337]
[1741545789423,4.7216277,553.36,552.09,0.30263337]
[1741545789626,1.76834349,553.38,552.09,0.30263337]
[1741545789931,0.31470856,553.35,552.1,0.30263337]
[1741545790134,0.31470856,553.35,552.11,0.30263337]
[1741545790431,0.31470856,553.35,552.12,0.30263337]
[1741545790827,1.4308672,553.34,552.13,0.30263337]
[1741545791030,1.4308672,553.34,552.14,0.30263337]
[1741545791227,1.4308672,553.34,552.02,0.30263337]
[1741545791430,0.937,553.33,552.03,0.30263337]
[1741545791632,2.3678672,553.33,552.03,0.30263337]
[1741545791930,0.31470002,553.32,552.04,0.30263337]
[1741545792133,0.31470002,553.32,552.01,0.36231227]
[1741545792134,0.31470002,553.32,552.05,0.30263337]
[1741545792329,1.11566887,553.31,552.06,0.30263337]
[1741545792526,1.11566887,553.3,552.06,0.30263337]
[1741545792729,1.11566887,553.29,552.07,0.30263337]
[1741545792931,3.70822655,553.31,552.08,0.30263337]
[1741545793132,0.31470002,553.32,552.01,0.36231227]
[1741545793133,1.42624098,553.28,552.09,0.30263337]
[1741545793733,1.42624098,553.28,552.1,0.30263337]
[1741545794327,0.31470002,553.32,552.01,0.36231227]
[1741545794328,0.31470002,553.32,552.11,0.30263337]
[1741545794533,0.31470002,553.32,552.12,0.30263337]
[1741545794733,0.937,553.33,552.13,0.30263337]
[1741545795229,0.937,553.33,552.14,0.30263337]
[1741545795535,0.937,553.33,552.15,0.30263337]
[1741545795935,0.31474271,553.32,552.16,0.30263337]
[1741545796233,0.31474271,553.32,552.17,0.30263337]
[1741545796427,0.31474271,553.32,552.18,0.30263337]
[1741545796733,1.42310515,553.31,552.19,0.30263337]
[1741545797133,1.42310515,553.31,552.2,0.30263337]
[1741545797431,1.42310515,553.3,552.21,0.30263337]
[1741545797626,1.42310515,553.3,552.22,0.30263337]
[1741545797826,1.42310515,553.3,552.23,0.30263337]
[1741545798032,0.31472563,553.29,552.23,0.30263337]
[1741545798234,1.73783078,553.29,552.24,0.30263337]
[1741545798427,1.73783078,553.29,552.25,0.30263337]
[1741545798633,1.42310515,553.28,552.26,0.30263337]
[1741545798828,1.42310515,553.28,552.01,0.36231227]
[1741545799034,1.42310515,553.28,552.02,0.30193807]
[1741545799426,1.42310515,553.27,552.03,0.30193807]
[1741545799631,1.42310515,553.27,552.04,0.30193807]
[1741545800032,1.11265965,553.26,552.05,0.30193807]
[1741545800334,3.69890507,553.25,552.06,0.30191814]
[1741545800537,3.69890507,553.24,552.07,0.30191814]
[1741545800835,3.69890507,553.24,552.08,0.30191814]
[1741545801033,3.69890507,553.24,552.09,0.30191814]
[1741545801226,3.69890507,553.24,552.1,0.30191814]
[1741545801432,3.69890507,553.24,552.01,0.36231227]
[1741545801433,3.69890507,553.24,552.11,0.30193658]
[1741545801731,1.42310515,553.23,552.12,0.30193658]
[1741545802035,1.11265761,553.22,552.13,0.30193658]
[1741545802231,1.11265761,553.21,552.13,0.30193658]
[1741545802435,1.11265761,553.2,552.14,0.30193658]
[1741545802631,3.69908806,553.21,552.14,0.30193658]
[1741545802830,1.11303082,553.2,552.15,0.30193658]
[1741545803034,1.11303082,553.19,552.02,0.30193658]
[1741545803334,3.69908806,553.19,552.03,0.30193658]
[1741545803534,3.69908806,553.19,552.04,0.30193658]
[1741545803734,2.08306912,553.29,552.01,0.36231227]
[1741545803735,4.81228575,553.18,552.05,0.30193658]
[1741545803936,1.11319769,553.17,552.05,0.30193658]
[1741545804236,2.8944244,553.16,552.06,0.30193658]
[1741545804435,3.43690169,553.15,552.07,0.30193658]
[1741545804639,5.24526622,553.14,552.08,0.30193658]
[1741545804835,5.24526622,553.13,552.02,0.30193658]
[1741545805035,7.01360971,553.12,552.09,0.30193658]
[1741545805234,5.24676183,553.11,552.1,0.30193658]
[1741545805435,5.2469922,553.1,552.1,0.30193658]
[1741545805735,5.2469922,553.09,552.02,0.30193658]
[1741545805935,5.2469922,553.08,552.01,0.36231227]
[1741545806138,8.14112717,553.07,552.02,0.30244136]
[1741545806336,8.14112717,553.06,552.02,0.30244136]
[1741545806633,1.76834349,553.0,552.02,0.30244136]
[1741545806935,4.70442532,552.99,552.02,0.30244136]
[1741545807131,5.2469922,552.98,552.02,0.30244136]
[1741545807338,5.2469922,552.97,552.02,0.30244136]
[1741545807537,5.24712849,552.96,552.02,0.30244136]
[1741545807736,5.24712849,552.95,552.02,0.30244136]
[1741545807937,3.443112,552.94,552.02,0.30244136]
[1741545808234,1.76834349,552.91,552.02,0.30244136]
[1741545808435,2.92514434,552.9,552.02,0.30244136]
[1741545808637,1.11550132,552.89,552.02,0.30244136]
[1741545808831,1.76834349,552.83,552.02,0.30244136]
[1741545809037,1.11550132,552.82,552.02,0.30244136]
[1741545809429,4.81458938,552.82,552.02,0.30244136]
[1741545809732,1.11550132,552.81,552.02,0.30244136]
[1741545809936,4.81458938,552.81,552.01,0.36231227]
[1741545810135,2.9018802,552.8,552.01,0.36231227]
[1741545810841,7.23831355,552.79,552.01,0.36231227]
[1741545811137,4.71189544,552.78,552.01,0.36231227]
[1741545811337,1.11550132,552.77,552.01,0.36231227]
[1741545811537,5.42829831,552.79,552.02,0.30303536]
[1741545811739,1.42310515,552.76,552.02,0.30303536]
[1741545812232,2.27598291,552.78,552.02,0.30303536]
[1741545812540,1.72921025,552.79,552.02,0.30303536]
[1741545812737,1.414,552.79,552.02,0.30303536]
[1741545813841,0.3149535,552.78,552.02,0.30303536]
[1741545814637,0.3149535,552.78,552.01,0.36231227]
[1741545814833,0.3149535,552.78,552.02,0.30285819]
[1741545815739,1.414,552.79,552.02,0.30285819]
[1741545816042,0.3149592,552.77,552.01,0.36231227]
[1741545816234,0.3149592,552.77,552.03,0.30284934]
[1741545816438,0.3149592,552.77,552.01,0.36231227]
[1741545816640,1.11789659,552.76,552.04,0.36229258]
[1741545816934,4.83325521,552.75,552.05,0.30288886]
[1741545817138,1.11789659,552.74,552.05,0.30288886]
[1741545817439,3.71535862,552.75,552.05,0.30288886]
[1741545817735,3.71535862,552.73,552.06,0.36227946]
[1741545817936,3.71535862,552.73,552.07,0.30288886]
[1741545818139,1.42868505,552.72,552.07,0.30288886]
[1741545818743,1.42868505,552.71,552.07,0.30288886]
[1741545819637,1.414,552.79,552.07,0.30288886]
[1741545820040,0.31494353,552.71,552.07,0.30288886]
[1741545820240,1.414,552.79,552.07,0.30288886]
[1741545820635,1.42930264,552.78,552.07,0.30288886]
[1741545820837,1.42930264,552.78,552.08,0.36226633]
[1741545821143,1.42930264,552.78,552.09,0.30288886]
[1741545821535,1.414,552.79,552.09,0.30288886]
[1741545824642,1.414,552.79,552.1,0.30288886]
[1741545824843,1.414,552.79,552.11,0.30288886]
[1741545825037,1.414,552.79,552.12,0.30288886]
[1741545825244,1.414,552.79,552.08,0.36226633]
[1741545825546,1.414,552.79,552.09,0.3026806]
[1741545825746,1.414,552.79,552.1,0.3026806]
[1741545826044,1.414,552.79,552.11,0.3026806]
[1741545826444,1.414,552.79,552.12,0.3026806]
[1741545826645,1.414,552.79,552.13,0.3026806]
[1741545826840,1.414,552.79,552.08,0.36226633]
[1741545827041,1.414,552.79,552.09,0.30217538]
[1741545827448,1.414,552.79,552.1,0.30217538]
[1741545827843,1.414,552.79,552.09,0.30217538]
[1741545828047,1.414,552.79,552.1,0.30217538]
[1741545828445,1.414,552.79,552.11,0.30217538]
[1741545828641,1.414,552.79,552.08,0.36226633]
[1741545828842,1.414,552.79,552.09,0.30237164]
[1741545830347,1.414,552.79,552.08,0.36226633]
[1741545830547,1.414,552.79,552.09,0.30235614]
[1741545831049,0.31492785,552.78,552.09,0.30235614]
[1741545831748,0.31492785,552.78,552.1,0.36225321]
[1741545831946,0.31492785,552.78,552.11,0.30235614]
[1741545832148,0.31492785,552.78,552.12,0.36224009]
[1741545832551,0.31492785,552.78,552.13,0.30235614]
[1741545833052,0.31492785,552.78,551.28,1.90369826]
[1741545833053,0.31492785,552.78,552.14,0.66487625]
[1741545833248,0.31492785,552.78,552.15,0.30264928]
[1741545833450,0.31492785,552.78,552.16,0.36221385]
[1741545833646,1.414,552.79,552.16,0.36221385]
[1741545833847,1.414,552.79,552.17,0.30264928]
[1741545838051,1.414,552.79,552.18,0.36220073]
[1741545838256,1.414,552.79,552.19,0.30264928]
[1741545838456,1.414,552.79,552.2,0.36218761]
[1741545838954,0.31488368,552.83,552.21,0.30264928]
[1741545839560,0.31488368,552.83,552.2,0.36218761]
[1741545839759,0.31488368,552.83,552.21,0.30272246]
[1741545840353,2.9301063,553.12,552.21,0.30272246]
[1741545840558,2.28736495,553.17,552.21,0.30272246]
[1741545840559,1.12119963,553.11,552.21,0.30272246]
[1741545840761,1.12119963,553.1,552.22,0.30256491]
[1741545841054,1.12119963,553.09,552.21,0.30256491]
[1741545841254,0.31482671,553.1,552.23,0.30256491]
[1741545841458,1.12146996,553.09,552.25,0.36215482]
[1741545841658,1.1214785,553.08,552.25,0.36215482]
[1741545841857,3.72103195,553.09,552.26,0.30256491]
[1741545842053,2.21232741,553.08,552.26,0.30256491]
[1741545842258,1.09,553.08,552.26,0.30256491]
[1741545842654,1.433667,553.07,552.26,0.30256491]
[1741545843061,1.433667,553.06,552.26,0.30256491]
[1741545844258,1.09,553.08,552.26,0.30256491]
[1741545845261,1.09,553.08,552.27,0.30256491]
[1741545845457,1.09,553.08,552.28,0.30220611]
[1741545845759,1.09,553.08,552.29,0.30220611]
[1741545846156,1.09,553.08,552.26,0.30220611]
[1741545846358,1.09,553.08,552.3,0.30220611]
[1741545846560,1.09,553.08,552.31,0.30220611]
[1741545846960,1.09,553.08,552.26,0.30220611]
[1741545847459,1.09,553.08,552.28,0.36213514]
[1741545847663,1.09,553.08,552.29,0.30220611]
[1741545847864,1.09,553.08,552.3,0.36212203]
[1741545848166,1.09,553.08,552.31,0.30220611]
[1741545848460,1.09,553.08,552.32,0.36210892]
[1741545848859,1.09,553.08,552.33,0.30220611]
[1741545849260,1.09,553.08,552.34,0.36209581]
[1741545849468,1.09,553.08,552.35,0.30220611]
[1741545849958,1.12361008,553.07,552.35,0.30220611]
[1741545850163,1.09,553.08,552.35,0.30220611]
[1741545850363,1.12369386,553.07,552.35,0.30220611]
[1741545850664,4.85811785,553.06,552.35,0.30220611]
[1741545850865,1.12369386,553.05,552.35,0.30220611]
[1741545851066,1.12369386,553.04,552.35,0.30220611]
[1741545851360,4.85811785,553.03,552.35,0.30220611]
[1741545851565,1.12369386,553.02,552.35,0.30220611]
[1741545851766,2.93311934,553.01,552.35,0.30220611]
[1741545851969,2.93311934,553.0,552.34,0.36209581]
[1741545852168,2.9332192,552.99,552.34,0.36209581]
[1741545852366,2.93322272,552.98,552.35,0.30245049]
[1741545852661,8.46732955,552.97,552.34,0.36209581]
[1741545852866,4.73290556,552.96,552.34,0.36209581]
[1741545853064,2.93330111,552.95,552.35,0.30266888]
[1741545853263,2.93330111,552.94,552.34,0.36209581]
[1741545853565,1.12448583,552.93,552.35,0.30276542]
[1741545853769,1.12448583,552.92,552.35,0.30276542]
[1741545853969,1.12448583,552.91,552.35,0.30276542]
[1741545854264,1.12448583,552.9,552.34,0.36209581]
[1741545854473,1.12448583,552.89,552.34,0.36209581]
[1741545854773,1.12448583,552.88,552.34,0.36209581]
[1741545854973,1.12580957,552.87,552.34,0.36209581]
[1741545855170,1.12580957,552.86,552.34,0.36209581]
[1741545855473,4.86023356,552.85,552.34,0.36209581]
[1741545855675,4.73737815,552.84,552.34,0.36209581]
[1741545855973,4.73737815,552.83,552.34,0.36209581]
[1741545856468,8.47180214,552.83,552.34,0.36209581]
[1741545856773,4.70507377,552.82,552.34,0.36209581]
[1741545857073,11.91022232,552.82,552.34,0.36209581]
[1741545857568,8.17580111,552.81,552.34,0.36209581]
[1741545857769,8.17580111,552.8,552.34,0.36209581]
[1741545857975,8.17580111,552.79,552.34,0.36209581]
[1741545858174,8.17580111,552.78,551.64,1.32397652]
[1741545858369,8.17580111,552.77,551.66,0.36254214]
[1741545858573,8.17580111,552.76,551.67,0.30310348]
[1741545858776,2.93537161,552.75,551.67,0.30310348]
[1741545859073,1.436942,552.74,551.67,0.30310348]
[1741545859678,0.31505615,552.76,551.67,0.30310348]
[1741545860980,0.31505615,552.76,551.69,0.36252243]
[1741545861177,1.44033554,552.98,551.69,0.36252243]
[1741545861178,1.44033554,552.98,551.7,0.30310348]
[1741545861385,1.44033554,552.98,551.71,0.30310348]
[1741545861590,1.44033554,552.98,551.69,0.36252243]
[1741545861780,1.44033554,552.97,551.69,0.36252243]
[1741545862089,2.30433092,553.29,551.69,0.36252243]
[1741545862288,2.30433092,553.29,551.7,0.30260543]
[1741545862486,3.74395801,553.28,551.7,0.30260543]
[1741545862685,3.74395801,553.28,551.71,0.30260543]
[1741545862880,1.43962709,553.28,551.72,0.30260543]
[1741545863085,1.43962709,553.27,551.73,0.30260543]
[1741545863288,1.43962709,553.27,551.74,0.30260543]
[1741545863485,1.43962709,553.27,551.69,0.36252243]
[1741545863486,1.7544239,553.26,552.18,1.32397652]
[1741545863790,1.7544239,553.26,552.19,0.30260543]
[1741545863980,1.7544239,553.26,552.2,0.30260543]
[1741545864386,1.7544239,553.26,552.21,0.30260543]
[1741545864587,1.43962709,553.25,552.23,0.36216793]
[1741545864787,1.43962709,553.25,552.24,0.30260543]
[1741545865184,1.43962709,553.24,552.24,0.30260543]
[1741545865685,0.31479681,553.26,552.24,0.30260543]
[1741545865885,0.31479681,553.26,552.25,0.30260543]
[1741545866092,2.93228113,553.49,552.26,0.30260543]
[1741545866293,0.31470429,553.28,552.26,0.30260543]
[1741545866492,0.31470429,553.28,552.23,0.36216793]
[1741545866493,0.31470429,553.28,552.27,0.30260543]
[1741545866691,0.31470429,553.28,552.28,0.30260543]
[1741545866989,0.31470429,553.28,552.29,0.30260543]
[1741545867190,0.31470429,553.28,552.3,0.30260543]
[1741545867387,0.31470429,553.28,552.31,0.30260543]
[1741545867590,0.31470429,553.28,552.32,0.30260543]
[1741545867798,1.78335932,553.63,552.33,0.30260543]
[1741545867985,0.31467583,553.38,552.33,0.30260543]
[1741545868186,0.31467583,553.38,552.34,0.30260543]
[1741545868386,0.31467583,553.38,552.35,0.30260543]
[1741545868692,1.43588917,553.65,552.36,0.30260543]
[1741545868995,1.43588917,553.65,552.37,0.30260543]
[1741545869186,1.43588917,553.91,552.38,0.30260543]
[1741545869385,4.72289114,553.9,552.39,0.30260543]
[1741545869588,4.72289114,553.9,552.23,0.36216793]
[1741545869589,0.31465307,553.46,552.4,0.30260543]
[1741545869790,0.31465307,553.46,552.41,0.30260543]
[1741545870095,0.31465307,553.46,552.42,0.30260543]
[1741545870286,0.31465307,553.46,552.43,0.30260543]
[1741545870596,0.31465307,553.46,552.44,0.30260543]
[1741545870800,0.31465307,553.46,552.24,0.30260543]
[1741545871094,1.12190121,553.84,552.23,0.36216793]
[1741545871095,3.72900157,553.83,552.25,0.30260543]
[1741545871293,0.31462746,553.55,552.26,0.30142211]
[1741545871498,0.31462746,553.55,552.27,0.30142211]
[1741545871699,0.31462746,553.55,552.28,0.30142211]
[1741545871891,0.31462746,553.55,552.29,0.30140648]
[1741545872103,0.31462746,553.55,552.3,0.30140648]
[1741545872294,0.31462746,553.55,552.31,0.30140648]
[1741545872497,0.31462746,553.55,552.32,0.30140648]
[1741545872693,4.72050264,553.79,552.33,0.30140648]
[1741545872898,0.31466872,553.41,552.34,0.30140648]
[1741545873201,3.72900157,553.8,552.23,0.36216793]
[1741545873202,1.12072746,553.77,552.35,0.30140648]
[1741545873399,4.84972903,553.76,552.36,0.30140648]
[1741545873700,1.12072746,553.75,552.37,0.301656]
[1741545873899,1.12072746,553.75,552.38,0.301656]
[1741545874102,0.31467014,553.4,552.39,0.301656]
[1741545874398,0.31467014,553.4,552.4,0.301656]
[1741545874597,0.31467014,553.4,552.41,0.301656]
[1741545874802,0.31467014,553.4,552.42,0.301656]
[1741545874997,1.43423137,553.73,552.43,0.301656]
[1741545875298,1.43423137,553.71,552.44,0.301656]
[1741545875499,2.91091737,553.7,552.45,0.301656]
[1741545875801,9.13977582,554.84,552.23,0.36216793]
[1741545875802,6.635298,553.69,552.46,0.301656]
[1741545876100,4.71752664,553.68,552.47,0.301656]
[1741545876400,8.44198289,553.67,552.24,0.301656]
[1741545876602,4.71760226,553.66,552.25,0.301656]
[1741545876897,4.84394019,553.65,552.26,0.301656]
[1741545877099,0.31468437,553.35,552.28,0.36213514]
[1741545877299,0.31468437,553.35,552.29,0.30161138]
[1741545877603,3.72438063,553.63,552.3,0.66373341]
[1741545877803,0.31465022,553.45,552.31,0.30161138]
[1741545878019,0.31465022,553.45,552.32,0.30161138]
[1741545878304,0.31465022,553.45,552.33,0.30161138]
[1741545878503,0.31465022,553.45,552.3,0.36212203]
[1741545878504,0.31465022,553.45,552.34,0.30161138]
[1741545878699,1.43423137,553.61,552.35,0.30161138]
[1741545878905,1.43423137,553.61,552.3,0.36212203]
[1741545879100,0.31461751,553.55,552.31,0.30144749]
[1741545879406,2.28871794,553.87,552.32,0.30144749]
[1741545879601,2.90786135,553.86,552.33,0.30144749]
[1741545879905,1.11840821,553.85,552.34,0.30144749]
[1741545880103,0.31459191,553.64,552.35,0.30144749]
[1741545880309,0.31459191,553.64,552.36,0.30144749]
[1741545880509,0.31459191,553.64,552.37,0.30144749]
[1741545880707,0.31459191,553.64,552.38,0.30155718]
[1741545880908,0.31459191,553.64,552.39,0.66362021]
[1741545881408,1.42923422,553.63,552.4,0.66361366]
[1741545881711,1.42923422,553.63,552.41,0.30155718]
[1741545882005,1.42923422,553.62,552.42,0.30155718]
[1741545882401,3.71548075,553.61,552.43,0.66359399]
[1741545882803,3.71548075,553.61,552.44,0.30155718]
[1741545883003,1.42923422,553.6,552.45,0.30155718]
[1741545883212,1.42923422,553.6,552.46,0.30155718]
[1741545883505,1.42923422,553.6,552.47,0.30155718]
[1741545883809,3.71481694,553.59,552.48,0.30155718]
[1741545884019,3.71481694,553.59,552.49,0.30155718]
[1741545884205,1.42923422,553.63,552.5,0.30155718]
[1741545884410,1.42923422,553.63,552.51,0.30155718]